bitfinex/quotes_SOLUSD_20251024
["timestamp","ask_amount","ask_price","bid_price","bid_amount"]
[1761280022339,0.1,193.14,193.13,104.27564541]
[1761280022942,0.1,193.14,193.13,42.47564541]
[1761280023656,0.79,193.14,193.11,59.66]
[1761280023954,0.1,193.14,193.11,59.66]
[1761280024163,0.1,193.14,193.11,36.78]
[1761280024745,0.79,193.14,193.11,36.78]
[1761280024936,0.79,193.14,193.03,10.87647521]
[1761280025143,0.79,193.14,193.09,5.1789321]
[1761280025345,0.79,193.14,193.1,36.76]
[1761280025856,0.1,193.14,193.1,37.77786639]
[1761280026959,0.1,193.14,193.11,5.17839573]
[1761280027161,0.1,193.14,193.12,0.51781275]
[1761280027458,0.1,193.14,193.13,36.76]
[1761280028057,0.1,193.14,193.13,47.63647521]
[1761280028962,0.1,193.14,193.13,52.81433468]
[1761280032962,0.1,193.14,193.13,16.05433468]
[1761280033264,0.1,193.14,193.13,52.79433468]
[1761280035979,0.1,193.14,193.13,75.67433468]
[1761280036770,0.81,193.14,193.13,28.05785947]
[1761280036975,0.81,193.14,193.1,0.5]
[1761280037288,0.1,193.14,193.11,36.74]
[1761280037462,0.1,193.14,193.12,0.51781275]
[1761280037784,0.1,193.14,193.13,22.88]
[1761280038370,0.81,193.14,193.13,22.88]
[1761280038577,0.1,193.14,193.13,28.05785947]
[1761280039990,0.1,193.14,193.12,42.43574224]
[1761280039991,0.81,193.14,193.12,42.43574224]
[1761280040177,0.81,193.14,193.13,6.13628779]
[1761280040879,0.1,193.14,193.13,6.13628779]
[1761280042083,0.1,193.14,193.13,11.31414726]
[1761280042297,0.1,193.14,193.13,48.03414726]
[1761280043579,0.1,193.14,193.13,58.91062247]
[1761280043887,0.1,193.14,193.13,59.42840841]
[1761280044076,0.1,193.14,193.13,53.29212062]
[1761280044276,0.1,193.14,193.13,59.42840841]
[1761280045374,0.71,193.23,193.2,22.88]
[1761280045596,0.71,193.23,193.22,6.13628779]
[1761280045990,0.71,193.23,193.21,36.7]
[1761280046219,0.71,193.23,193.21,42.83628779]
[1761280049221,0.71,193.23,193.21,36.7]
[1761280050499,6.84628779,193.23,193.14,0.51775913]
[1761280050823,0.7,193.22,193.15,47.99359846]
[1761280051202,0.7,193.22,193.15,42.81628779]
[1761280051616,6.13628779,193.2,193.09,0.51789321]
[1761280051813,0.7,193.19,193.1,47.55647521]
[1761280052019,0.7,193.19,193.11,0.51783957]
[1761280052214,0.7,193.19,193.14,6.13628779]
[1761280052710,0.7,193.19,193.13,6.13628779]
[1761280052912,0.7,193.19,193.1,0.51786639]
[1761280053219,0.7,193.19,193.12,6.13628779]
[1761280053420,0.7,193.19,193.14,6.13628779]
[1761280054504,0.7,193.19,193.12,6.13628779]
[1761280054710,0.7,193.19,193.14,6.13628779]
[1761280054909,0.7,193.19,193.13,6.13628779]
[1761280055507,0.7,193.19,193.12,6.13628779]
[1761280055716,0.7,193.19,193.11,27.3]
[1761280055917,0.7,193.19,193.12,6.13628779]
[1761280057026,0.7,193.19,193.13,6.13628779]
[1761280057522,0.7,193.19,193.12,6.13628779]
[1761280058220,0.7,193.19,193.11,27.3]
[1761280058524,0.7,193.19,193.18,6.13628779]
[1761280058708,6.13628779,193.27,193.18,6.13628779]
[1761280059025,6.13628779,193.26,193.19,6.13628779]
[1761280059228,6.13628779,193.26,193.18,6.13628779]
[1761280059521,0.7,193.25,193.18,6.13628779]
[1761280059826,0.7,193.25,193.16,5.17705529]
[1761280060029,0.7,193.25,193.19,6.13628779]
[1761280060529,0.7,193.25,193.21,6.13628779]
[1761280060836,0.7,193.25,193.22,6.13628779]
[1761280061818,0.7,193.25,193.17,0.51767872]
[1761280062038,0.7,193.25,193.2,6.13628779]
[1761280062608,0.7,193.25,193.19,6.13628779]
[1761280062929,5.87471125,193.25,193.17,0.51767872]
[1761280063115,5.87471125,193.25,193.19,6.13628779]
[1761280063313,0.68,193.24,193.18,6.13628779]
[1761280064133,0.68,193.24,193.19,6.13628779]
[1761280065739,0.68,193.24,193.13,0.51778594]
[1761280065740,11.9912049,193.24,193.13,0.51778594]
[1761280065914,11.9912049,193.24,193.16,6.13628779]
[1761280066231,0.68,193.23,193.18,6.13628779]
[1761280068415,0.68,193.23,193.13,37.13778594]
[1761280068416,5.85519298,193.23,193.13,37.13778594]
[1761280068621,0.68,193.22,193.17,6.13628779]
[1761280069938,0.68,193.22,193.19,6.13628779]
[1761280070415,0.68,193.22,193.14,5.17732373]
[1761280070614,0.68,193.22,193.18,6.13628779]
[1761280071746,5.85545955,193.22,193.16,6.13628779]
[1761280072239,0.68,193.21,193.16,6.13628779]
[1761280072826,0.68,193.21,193.15,6.13628779]
[1761280073030,0.68,193.21,193.14,6.13628779]
[1761280073437,0.68,193.21,193.09,84.68]
[1761280073438,6.13628779,193.18,193.09,4.22861976]
[1761280073757,5.85574491,193.21,193.12,6.13628779]
[1761280073758,6.13628779,193.19,193.12,6.13628779]
[1761280073939,6.81628779,193.2,193.13,6.13628779]
[1761280074540,0.68,193.19,193.13,6.13628779]
[1761280074748,0.68,193.19,193.13,4.11987708]
[1761280074932,5.85640395,193.19,193.13,4.11987708]
[1761280075335,0.68,193.18,193.15,4.11987708]
[1761280076132,0.68,193.18,193.16,4.11987708]
[1761280076349,0.68,193.18,193.17,4.11987708]
[1761280076539,0.68,193.2,193.17,4.11987708]
[1761280076758,0.68,193.25,193.17,4.11987708]
[1761280076951,5.17491202,193.24,193.17,4.11987708]
[1761280077446,4.79987708,193.23,193.16,4.11987708]
[1761280077631,4.79987708,193.23,193.15,40.71987708]
[1761280077830,4.79987708,193.22,193.15,40.71987708]
[1761280078343,0.68,193.21,193.15,4.11987708]
[1761280078545,4.79987708,193.21,193.14,4.11987708]
[1761280078747,0.68,193.21,193.15,1.64770177]
[1761280078930,5.8560646,193.2,193.14,1.64770177]
[1761280079129,1.64770177,193.19,193.11,1.64770177]
[1761280079329,2.32770177,193.19,193.12,1.64770177]
[1761280079635,2.32770177,193.19,193.1,36.7]
[1761280079636,0.68,193.18,193.11,1.64770177]
[1761280079832,0.68,193.18,193.12,1.64770177]
[1761280080240,5.85653022,193.18,193.12,1.64770177]
[1761280080743,0.68,193.17,193.12,1.64770177]
[1761280081451,0.68,193.17,193.11,1.64770177]
[1761280081632,0.68,193.17,193.1,36.7]
[1761280081837,2.32770177,193.17,193.1,38.34770177]
[1761280082358,0.68,193.16,193.11,1.64770177]
[1761280087577,1.64770177,193.15,193.09,1.64770177]
[1761280087745,1.64770177,193.15,193.06,9.92339234]
[1761280087746,1.64770177,193.13,193.06,6.82450067]
[1761280088375,2.32770177,193.12,193.05,1.64770177]
[1761280088862,0.68,193.11,193.05,1.64770177]
[1761280090739,0.68,193.11,193.06,1.64770177]
[1761280095450,0.68,193.11,193.04,5.18015544]
[1761280095749,0.68,193.11,193.06,1.64770177]
[1761280095955,0.68,193.11,193.08,1.64770177]
[1761280096640,102.0,193.18,193.1,1.64770177]
[1761280096842,0.72,193.14,193.13,1.64770177]
[1761280097371,0.72,193.14,193.06,5.17760482]
[1761280097372,0.72,193.14,193.12,1.64770177]
[1761280097677,0.72,193.14,193.13,1.64770177]
[1761280098778,0.72,193.14,193.12,1.64770177]
[1761280098979,0.72,193.14,193.13,1.64770177]
[1761280099300,0.72,193.22,193.14,10.87647521]
[1761280099482,6.82210533,193.26,193.19,1.64770177]
[1761280099777,6.82210533,193.26,193.14,11.39423434]
[1761280099778,0.72,193.21,193.16,1.64770177]
[1761280101279,0.72,193.21,193.17,1.64770177]
[1761280101456,0.72,193.21,193.16,1.64770177]
[1761280101852,0.72,193.21,193.14,5.17754993]
[1761280102056,5.89576163,193.21,193.12,41.75790323]
[1761280102367,7.5434634,193.21,193.14,1.64770177]
[1761280102566,0.72,193.2,193.15,1.64770177]
[1761280103981,0.72,193.2,193.13,5.17782403]
[1761280103982,7.54383284,193.2,193.13,1.64770177]
[1761280104355,0.72,193.19,193.13,1.64770177]
[1761280105073,0.72,193.19,193.15,1.64770177]
[1761280105379,0.72,193.19,193.16,1.64770177]
[1761280105679,0.72,193.19,193.17,1.64770177]
[1761280105878,0.72,193.19,193.18,1.64770177]
[1761280106667,0.72,193.19,193.17,1.64770177]
[1761280108155,0.72,193.19,193.14,5.17736686]
[1761280108377,0.72,193.19,193.17,1.64770177]
[1761280108982,0.72,193.19,193.14,5.17736686]
[1761280109175,0.72,193.19,193.16,1.64770177]
[1761280109770,0.72,193.19,193.15,1.64770177]
[1761280110085,0.72,193.19,193.11,28.05548186]
[1761280110288,7.54397593,193.19,193.11,22.88]
[1761280110481,1.64770177,193.15,193.06,0.51797368]
[1761280110687,1.64770177,193.15,193.08,1.64770177]
[1761280110889,0.68,193.14,193.08,1.64770177]
[1761280111199,7.5054156,193.14,193.07,1.64770177]
[1761280111372,0.68,193.13,193.07,1.64770177]
[1761280111579,0.68,193.13,193.09,1.64770177]
[1761280111999,0.68,193.13,193.1,1.64770177]
[1761280112298,0.68,193.13,193.11,1.64770177]
[1761280115808,5.17682923,193.17,193.11,1.64770177]
[1761280115999,5.17682923,193.17,193.08,10.87647521]
[1761280116000,0.71,193.15,193.12,1.64770177]
[1761280117805,0.71,193.15,193.09,5.17887061]
[1761280118008,0.71,193.15,193.12,1.64770177]
[1761280119401,0.71,193.15,193.11,1.64770177]
[1761280119700,0.71,193.15,193.1,1.64770177]
[1761280121507,0.71,193.15,193.09,1.64770177]
[1761280121701,7.53504953,193.15,193.09,1.64770177]
[1761280122211,0.67,193.14,193.09,1.64770177]
[1761280126102,0.67,193.14,193.01,10.87647521]
[1761280126103,1.64770177,193.11,193.01,10.87647521]
[1761280126286,1.64770177,193.11,193.04,1.64770177]
[1761280126488,0.67,193.1,193.04,1.64770177]
[1761280126688,2.31770177,193.1,193.03,1.64770177]
[1761280127189,0.67,193.09,193.03,1.64770177]
[1761280127502,0.67,193.09,193.0,5.18134715]
[1761280127706,0.67,193.09,193.03,1.64770177]
[1761280128088,5.84893395,193.09,193.03,1.64770177]
[1761280128320,0.67,193.08,193.03,1.64770177]
[1761280129002,2.31770177,193.08,193.01,1.64770177]
[1761280129202,0.67,193.08,193.05,1.64770177]
[1761280129390,0.67,193.07,193.05,1.64770177]
[1761280130513,0.67,193.07,193.03,1.64770177]
[1761280131004,0.67,193.07,193.02,1.64770177]
[1761280131205,0.67,193.07,193.03,1.64770177]
[1761280131406,0.67,193.07,193.02,1.64770177]
[1761280131599,0.67,193.07,193.03,1.64770177]
[1761280131795,1.64770177,193.04,192.99,15.56056951]
[1761280131992,1.64770177,193.04,192.97,1.64770177]
[1761280132195,0.67,193.03,193.0,1.64770177]
[1761280132708,0.67,193.03,192.99,1.64770177]
[1761280133087,0.67,193.03,192.97,10.87647521]
[1761280133291,0.67,193.03,192.98,1.64770177]
[1761280134711,0.67,193.03,192.98,2.57891608]
[1761280135818,12.94821564,193.08,193.0,2.57891608]
[1761280136115,15.55,193.13,193.06,2.57891608]
[1761280136116,0.67,193.09,193.06,2.57891608]
[1761280136494,0.67,193.09,193.02,10.87647521]
[1761280136693,0.67,193.09,193.05,2.57891608]
[1761280137106,0.67,193.09,193.06,2.57891608]
[1761280138012,0.67,193.09,193.02,26.43462379]
[1761280138312,0.67,193.09,193.02,10.87647521]
[1761280138618,0.67,193.09,193.04,2.57891608]
[1761280139211,5.8489611,193.09,193.02,10.87647521]
[1761280139391,5.8489611,193.09,193.03,2.57891608]
[1761280139597,0.67,193.08,193.03,2.57891608]
[1761280140010,0.67,193.08,193.01,41.70100197]
[1761280140194,0.67,193.08,193.03,2.57891608]
[1761280140702,2.57891608,193.04,192.91,5.18376444]
[1761280140914,2.57891608,193.02,192.95,2.57891608]
[1761280141410,0.67,193.01,192.98,2.57891608]
[1761280142208,0.67,193.01,192.94,16.57763543]
[1761280142407,0.67,193.01,192.96,2.57891608]
[1761280142612,0.67,193.03,192.98,2.57891608]
[1761280142914,5.18050754,193.04,192.98,2.57891608]
[1761280143124,0.67,193.02,192.98,2.57891608]
[1761280145412,0.67,193.02,192.95,16.05903898]
[1761280145612,3.24915839,193.02,192.95,16.05903898]
[1761280146221,3.24915839,193.01,192.95,16.05903898]
[1761280146522,3.24915839,193.01,192.95,29.00879391]
[1761280146722,0.67,193.0,192.95,29.00879391]
[1761280147126,0.67,193.0,192.95,16.05903898]
[1761280147424,0.67,193.0,192.96,5.1805727]
[1761280148128,0.67,193.0,192.94,10.87647521]
[1761280148429,0.67,193.0,192.94,16.05704791]
[1761280148801,0.67,193.03,192.95,0.51826898]
[1761280149203,0.67,193.03,192.96,10.87647521]
[1761280149606,0.67,193.03,192.96,5.18239562]
[1761280150123,0.67,193.03,192.97,13.46802391]
[1761280150701,0.67,193.07,192.98,11.39466362]
[1761280151013,0.67,193.06,192.98,11.39466362]
[1761280151319,2.57915839,193.11,193.01,10.87647521]
[1761280151524,0.72,193.1,193.01,11.39458308]
[1761280152004,0.72,193.1,193.02,15.55814858]
[1761280152399,0.72,193.1,193.03,5.18054188]
[1761280154529,2.57915839,193.13,193.04,10.87647521]
[1761280154728,0.72,193.11,193.04,10.87647521]
[1761280155114,2.57915839,193.09,193.04,10.87647521]
[1761280155508,0.72,193.08,193.04,10.87647521]
[1761280156555,0.72,193.08,193.03,5.18054188]
[1761280156854,3.29915839,193.08,193.02,10.87647521]
[1761280157028,2.57915839,193.07,193.04,5.17732332]
[1761280157232,0.72,193.07,193.04,5.17732332]
[1761280157558,0.72,193.07,193.02,5.17871163]
[1761280157559,0.72,193.06,193.02,5.17871163]
[1761280158049,0.72,193.06,193.0,22.88]
[1761280158254,0.72,193.06,193.0,28.06123432]
[1761280158435,0.72,193.06,193.01,10.35999189]
[1761280162566,3.29915839,193.06,193.01,5.17899809]
[1761280162969,0.72,193.05,193.01,5.17899809]
[1761280163159,2.57915839,193.04,192.98,5.181618]
[1761280163556,2.57915839,193.02,192.99,5.17893309]
[1761280163766,5.15831678,193.0,192.89,4.27234488]
[1761280164058,0.72,193.03,192.9,0.71]
[1761280164059,2.57915839,192.99,192.9,0.71]
[1761280164262,25.45915839,193.0,192.91,0.51837644]
[1761280164437,22.88,193.0,192.92,10.87647521]
[1761280164638,2.57915839,193.0,192.92,11.58647521]
[1761280164846,3.29915839,192.99,192.92,0.71]
[1761280166171,28.06109566,193.01,192.92,5.89332708]
[1761280166341,2.57915839,192.98,192.92,5.89332708]
[1761280166775,0.72,192.97,192.92,5.89332708]
[1761280166939,0.72,192.97,192.92,5.18332708]
[1761280167364,3.29915839,192.97,192.92,0.71]
[1761280168159,0.72,192.97,192.92,0.71]
[1761280168764,3.29915839,192.97,192.92,0.71]
[1761280169062,3.29915839,192.97,192.91,5.18376444]
[1761280169266,2.57915839,192.97,192.91,5.18376444]
[1761280169463,0.7,192.96,192.91,5.18376444]
[1761280169858,0.7,192.96,192.91,5.88376444]
[1761280172074,2.57915839,192.95,192.91,5.18376444]
[1761280172563,3.27915839,192.95,192.91,5.18376444]
[1761280173868,0.7,192.98,192.92,0.7]
[1761280174070,2.57915839,192.96,192.91,5.18376444]
[1761280174576,0.7,192.95,192.91,5.18376444]
[1761280177379,0.653216,192.95,192.91,5.18376444]
[1761280177951,0.653216,192.95,192.91,5.88376444]
[1761280178152,2.57915839,192.96,192.91,5.88376444]
[1761280178879,2.57915839,192.97,192.91,5.88376444]
[1761280179476,22.88,193.0,192.93,10.87647521]
[1761280179670,0.69,193.01,192.93,10.87647521]
[1761280179671,23.57,193.01,192.93,10.87647521]
[1761280179848,23.57,193.01,192.94,0.7]
[1761280181190,26.14915839,193.01,192.94,0.7]
[1761280181483,26.14915839,193.01,192.94,5.88276798]
[1761280181689,26.14915839,193.01,192.95,0.7]
[1761280182864,2.57915839,193.0,192.95,0.7]
[1761280183257,3.25915839,193.0,192.94,5.18276798]
[1761280183456,0.68,192.99,192.94,5.18276798]
[1761280183884,0.68,192.99,192.94,5.88276798]
[1761280184059,0.68,192.99,192.95,0.7]
[1761280184478,26.13915839,193.01,192.95,0.7]
[1761280184871,0.68,193.0,192.95,0.7]
[1761280185071,3.25915839,193.0,192.95,0.7]
[1761280185587,0.68,192.99,192.93,16.75969242]
[1761280186101,3.25915839,192.99,192.93,16.75969242]
[1761280187591,22.88,193.01,192.94,0.7]
[1761280187793,3.25915839,193.0,192.94,0.7]
[1761280188177,2.57915839,193.0,192.94,0.7]
[1761280188403,26.13915839,193.01,192.94,0.7]
[1761280190798,2.57915839,193.0,192.94,0.7]
[1761280191010,2.57915839,192.95,192.88,0.2]
[1761280191181,0.68,192.94,192.88,0.9]
[1761280191377,2.57915839,192.93,192.88,0.9]
[1761280191883,2.57915839,192.93,192.89,0.7]
[1761280193182,5.18214873,192.98,192.89,0.7]
[1761280193509,2.57915839,192.95,192.89,0.7]
[1761280194208,2.57915839,192.95,192.89,5.88425332]
[1761280194804,2.57915839,192.95,192.9,0.7]
[1761280195679,3.25915839,192.96,192.9,0.7]
[1761280196691,2.33184686,192.96,192.9,0.7]
[1761280197205,0.68,192.99,192.91,11.39485165]
[1761280197516,0.68,192.99,192.91,10.87647521]
[1761280197805,0.68,192.99,192.92,0.7]
[1761280198176,2.33184686,192.99,192.92,0.7]
[1761280198579,0.68,192.99,192.92,0.7]
[1761280198808,1.65184686,193.0,192.92,0.7]
[1761280199105,25.21184686,193.01,192.92,0.7]
[1761280199314,1.65184686,193.0,192.93,5.18322707]
[1761280199606,0.68,193.0,192.93,5.18322707]
[1761280199813,29.71294002,193.01,192.94,0.7]
[1761280200293,30.39294002,193.01,192.94,5.88294759]
[1761280200714,25.21184686,193.01,192.94,5.88294759]
[1761280200916,0.68,193.04,192.95,0.7]
[1761280201100,2.33184686,193.04,192.95,0.7]
[1761280201305,2.33184686,193.03,192.95,0.7]
[1761280202312,1.65184686,193.0,192.93,0.7]
[1761280202521,1.65184686,192.99,192.93,0.7]
[1761280202883,41.72049274,193.04,192.93,0.7]
[1761280202884,36.54,193.04,192.93,0.7]
[1761280203085,0.68,193.1,192.96,10.87647521]
[1761280203317,0.68,193.1,193.0,10.87647521]
[1761280203698,0.68,193.1,193.01,0.7]
[1761280204023,1.65184686,193.09,193.01,0.7]
[1761280204199,5.85886389,193.1,193.01,0.7]
[1761280204507,2.33184686,193.09,193.01,0.7]
[1761280204717,0.68,193.09,193.01,5.88102978]
[1761280205111,0.68,193.09,193.02,0.7]
[1761280205614,2.33184686,193.09,193.02,0.7]
[1761280206000,1.65184686,193.08,193.02,0.7]
[1761280206199,1.65184686,193.08,192.99,22.88]
[1761280206200,5.17953138,193.07,192.97,10.87647521]
[1761280206404,1.65184686,193.0,192.94,0.7]
[1761280206711,1.65184686,192.98,192.94,0.7]
[1761280207015,0.68,193.0,192.94,0.7]
[1761280207016,1.65184686,192.99,192.94,0.7]
[1761280207386,1.65184686,192.99,192.94,5.88293959]
[1761280207800,1.65184686,192.99,192.91,10.87647521]
[1761280207801,1.65184686,192.99,192.95,0.7]
[1761280207994,0.68,192.98,192.92,0.7]
[1761280208191,22.88,193.04,192.94,10.87647521]
[1761280208192,1.65184686,193.02,192.94,10.87647521]
[1761280208403,0.68,193.03,192.94,10.87647521]
[1761280208606,2.33184686,193.03,192.95,0.7]
[1761280209512,1.65184686,193.02,192.95,0.7]
[1761280209822,1.65184686,193.02,192.95,5.88263477]
[1761280210021,5.86061204,193.03,192.95,5.88263477]
[1761280210202,22.88,193.04,192.96,0.7]
[1761280210408,1.65184686,193.03,192.96,0.7]
[1761280210604,2.33184686,193.03,192.96,0.7]
[1761280211125,28.05998057,193.06,192.96,0.7]
[1761280211314,1.65184686,193.0,192.96,0.7]
[1761280211934,5.87054655,193.03,192.96,0.7]
[1761280212121,1.65184686,193.0,192.96,0.7]
[1761280212713,0.69,193.02,192.96,0.7]
[1761280212911,1.65184686,193.0,192.96,0.7]
[1761280213223,1.65184686,193.01,192.96,5.88238959]
[1761280213727,1.65184686,193.0,192.97,0.72]
[1761280215103,1.65184686,192.99,192.94,16.05921629]
[1761280215429,1.65184686,192.97,192.93,0.72]
[1761280216703,1.65184686,192.95,192.9,22.88]
[1761280216899,0.69,192.96,192.9,0.72]
[1761280218926,0.69,192.96,192.9,5.903993]
[1761280219228,0.69,192.96,192.9,0.72]
[1761280219802,5.87217276,192.97,192.9,0.72]
[1761280221123,5.87217276,192.97,192.9,5.90398211]
[1761280221330,0.69,192.97,192.91,0.72]
[1761280222928,0.69,192.97,192.89,36.52]
[1761280222929,1.65184686,192.93,192.89,36.52]
[1761280223127,1.65184686,192.92,192.88,5.38438429]
[1761280223530,1.65184686,192.91,192.88,5.38438429]
[1761280223901,1.65184686,192.91,192.88,0.92]
[1761280224114,0.69,192.98,192.89,0.72]
[1761280224307,1.65184686,192.97,192.89,0.72]
[1761280225241,1.65184686,192.97,192.9,5.18403317]
[1761280225442,1.65184686,193.0,192.91,10.87647521]
[1761280225744,25.22184686,193.02,192.93,10.87647521]
[1761280226113,25.22184686,193.02,192.94,0.72]
[1761280226637,0.69,193.04,192.94,0.72]
[1761280226959,0.69,193.02,192.94,0.72]
[1761280227102,2.34184686,193.02,192.94,0.72]
[1761280227304,0.69,193.02,192.94,5.90270668]
[1761280227531,0.69,193.03,192.94,5.90270668]
[1761280227742,0.69,193.03,192.95,0.7]
[1761280227920,2.34184686,193.03,192.95,0.7]
[1761280228333,1.65184686,193.02,192.95,0.7]
[1761280228544,0.69,193.03,192.95,0.7]
[1761280228837,1.65184686,193.02,192.95,0.7]
[1761280229041,0.69,193.03,192.95,0.7]
[1761280229340,2.34184686,193.03,192.95,5.88247327]
[1761280230210,2.34184686,193.03,192.96,0.7]
[1761280231858,6.83239452,193.03,192.96,0.7]
[1761280232056,2.31184686,193.02,192.96,0.7]
[1761280232936,2.31184686,193.02,192.95,5.18247327]
[1761280232937,2.31184686,193.01,192.95,5.88247327]
[1761280233536,2.31184686,193.01,192.96,0.7]
[1761280234154,1.65184686,193.01,192.93,5.18298908]
[1761280234359,1.65184686,192.98,192.92,0.7]
[1761280234526,1.65184686,192.97,192.92,0.7]
[1761280234928,2.31184686,192.97,192.92,0.7]
[1761280236955,0.66,192.97,192.92,0.7]
[1761280237141,1.65184686,192.97,192.92,5.88347637]
[1761280237544,5.84174338,192.99,192.93,0.7]
[1761280237743,1.65184686,192.97,192.93,0.7]
[1761280240043,5.84174338,192.99,192.93,0.7]
[1761280240246,1.65184686,192.94,192.9,37.22]
[1761280240454,1.65184686,192.94,192.9,0.7]
[1761280240639,1.65184686,192.94,192.91,0.7]
[1761280241234,5.84216599,192.97,192.91,0.7]
[1761280241434,1.65184686,192.94,192.91,0.7]
[1761280241838,0.66,192.97,192.91,0.7]
[1761280242044,1.65184686,192.96,192.91,0.7]
[1761280242656,2.33184686,192.96,192.91,0.7]
[1761280243243,1.65184686,192.95,192.91,0.7]
[1761280245345,5.86217312,192.97,192.91,0.7]
[1761280246262,36.52,192.99,192.91,5.88374005]
[1761280246263,0.68,192.99,192.91,5.88374005]
[1761280246559,4.59613786,193.1,192.92,0.67]
[1761280246560,1.65184686,193.0,192.92,0.67]
[1761280246864,1.65184686,192.99,192.92,0.67]
[1761280247244,1.65184686,193.0,192.92,0.67]
[1761280247446,1.65184686,193.01,192.93,10.87647521]
[1761280247842,1.65184686,193.0,192.94,0.67]
[1761280248344,1.65184686,193.0,192.94,5.85285783]
[1761280248540,1.65184686,192.99,192.94,5.85285783]
[1761280248740,1.65184686,192.99,192.95,0.67]
[1761280253067,0.68,192.98,192.93,0.67]
[1761280253247,2.33184686,192.98,192.93,0.67]
[1761280253448,1.65184686,192.98,192.93,0.67]
[1761280254562,2.33184686,192.98,192.93,0.67]
[1761280255571,1.65184686,192.97,192.93,0.67]
[1761280255871,1.65184686,192.96,192.9,5.1838297]
[1761280256063,1.65184686,192.96,192.91,0.67]
[1761280256764,2.58110551,192.96,192.91,0.67]
[1761280256977,2.58110551,192.96,192.91,5.8536337]
[1761280257167,2.58110551,192.96,192.92,0.67]
[1761280257666,2.58110551,192.95,192.92,0.67]
[1761280258041,2.58110551,192.95,192.89,5.18412068]
[1761280258268,2.58110551,192.94,192.89,5.85412068]
[1761280258662,2.58110551,192.94,192.9,0.67]
[1761280259067,2.58110551,192.95,192.9,5.8539998]
[1761280259266,0.68,192.97,192.9,5.8539998]
[1761280259465,2.58110551,192.98,192.91,0.67]
[1761280259863,2.58110551,192.97,192.91,0.67]
[1761280260251,2.58110551,192.98,192.91,0.67]
[1761280260451,3.26110551,192.98,192.91,5.85369753]
[1761280260671,2.58110551,192.97,192.91,5.85369753]
[1761280260870,2.58110551,192.97,192.92,0.67]
[1761280261471,39.10110551,193.0,192.92,0.67]
[1761280261869,2.58110551,192.99,192.92,0.67]
[1761280263084,2.58110551,192.95,192.91,5.18375011]
[1761280263376,2.58110551,192.96,192.91,5.18375011]
[1761280263595,2.58110551,192.97,192.92,0.67]
[1761280264881,2.58110551,192.96,192.92,0.67]
[1761280265065,3.26110551,192.96,192.92,0.67]
[1761280265477,2.58110551,192.96,192.92,0.67]
[1761280265962,2.58110551,192.97,192.92,5.85349392]
[1761280266378,2.58110551,192.97,192.93,0.67]
[1761280269093,5.18191454,192.98,192.93,0.67]
[1761280269267,2.58110551,192.97,192.93,0.67]
[1761280269881,8.44302005,192.98,192.93,0.67]
[1761280270070,23.56,193.01,192.93,5.85315401]
[1761280270377,22.88,193.01,192.94,10.87647521]
[1761280270584,22.88,193.01,192.94,11.54647521]
[1761280270756,22.88,193.01,192.95,0.67]
[1761280271970,25.46110551,193.01,192.95,0.67]
[1761280272176,2.58110551,192.98,192.93,0.65]
[1761280272373,2.58110551,192.97,192.93,0.65]
[1761280272567,2.58110551,192.98,192.93,0.65]
[1761280272891,2.58110551,192.99,192.93,0.65]
[1761280273089,28.06111905,193.01,192.93,0.65]
[1761280273268,7.76246523,193.0,192.93,5.83310614]
[1761280273992,7.76246523,193.0,192.94,0.65]
[1761280274175,2.58110551,192.99,192.94,0.65]
[1761280274378,2.58110551,192.98,192.94,0.65]
[1761280275405,2.58110551,192.99,192.94,0.65]
[1761280276282,2.58110551,192.98,192.94,0.65]
[1761280277788,2.58110551,192.96,192.92,0.65]